Cogmind - Beta 11 X9 @@@ ROGUE MODE // 2022.02.12 @ 22:43:42 // Winter2021/Sauler Player: Nalzok Result: Destroyed by X-72 Disruptor with Improved Arc Projector Performance ------------- Evolutions (5) 2500 Regions Visited (17) 3400 Robots Destroyed (111) 555 Value Destroyed (4580) 4580 Prototype IDs (33) 660 Alien Tech Used (0) 0 Bonus (4809) 4809 TOTAL SCORE: 16504 Bonus ------- High Alert Combat Kills 1103 Follower Combat Kills 2366 Entered DSFs 500 Aligned with FarCom 300 Met Imprinter 300 Built Enhanced Grunts 300 Met R17 at Cetus 500 Friendly Fire -560 Cogmind --------- Core Integrity 0/1000 Matter 230/300 Energy 100/100 System Corruption 9% Temperature Warm (163) Movement Core (100) Ox1 Location -5/Hub_04(d) Parts ------- > --- POWER (2) -------- (None) > --- PROPULSION (4) --- (None) > --- UTILITY (8) ------ 0b10 Decoder Chip [Generic] 0b10 Decoder Chip [Scout] 0b10 Decoder Chip [Skirmisher] Improved Core Analyzer > --- WEAPON (3) ------- Phasing Sabre > --- INVENTORY (5) ---- Advanced Energy Well Peak State ------------ > --- POWER ------------ Micro Fission Core Quantum Reactor > --- PROPULSION ------- Medium Treads Medium Treads Flexi-carbon Leg Enhanced Flexi-carbon Leg > --- UTILITY ---------- Improved Cooling System Huge Storage Unit Tactical Coordination Suite Improved Core Analyzer Weapon Cycler Centrium Medium Armor Plating Centrium Medium Armor Plating Centrium Medium Armor Plating > --- WEAPON ----------- Advanced Variable Charge Gun KE Penetrator Improved KE Penetrator > --- INVENTORY -------- Particle Reactor Quantum Reactor Advanced Heat Sink Matter Compressor 0b10 Decoder Chip [Generic] 0b10 Decoder Chip [Looter] 0b10 Decoder Chip [Scout] 0b10 Decoder Chip [Skirmisher] Centrium Medium Armor Plating Bomb Factory No. 2 Beamcaster Heavy Phase Cannon YOLO Cannon Gauss Rifle KE Penetrator Improved KE Penetrator Heavy Assault Cannon Advanced Assault Cannon Gauss Cannon Missile Launcher Phasing Sabre CR-A16's Pointy Stick [Rating: 118] Favorites ----------- Power Improved Ion Engine Engine Improved Ion Engine Power Core Micro Nuclear Core Reactor Quantum Reactor Propulsion Armored Huge Wheel Treads Medium Treads Leg Aluminum Leg Wheel Armored Huge Wheel Utility Huge Storage Unit Device Weapon Cycler Storage Huge Storage Unit Processor Improved Core Analyzer Protection Centrium Medium Armor Plating Weapon Gatling Laser Energy Gun Gatling Laser Energy Cannon Heavy Plasma Cannon Ballistic Gun KE Penetrator Ballistic Cannon Heavy Assault Cannon Launcher Rocket Launcher Impact Weapon Powered Hammer Slashing Weapon Phasing Sabre Piercing Weapon CR-A16's Pointy Stick Build | -11 -10 -10 -10 -9 -8 -7 -7 -6 -6 -6 -6 -5 -5 -5 -5 -5 -5 ------- Run | Scr Mat Min Exi Min Mat Fac DSF Fac Low Low Zio Pro Fac Ext Cet Arc Hub Slots Evolved 10 | . . . . . 4 2 . 2 . . . . 2 . . . . Power 1 | . . . . . 1 . . . . . . . . . . . . Propulsion 2 | . . . . . . 2 . . . . . . . . . . . Utility 6 | . . . . . 3 . . 1 . . . . 2 . . . . Weapon 1 | . . . . . . . . 1 . . . . . . . . . Parts Attached 140 | . 10 1 . 7 20 5 5 6 4 3 13 . 3 23 12 7 21 Power 20 | . 1 . . 1 4 1 . 1 . . . . . 7 1 1 3 Engine 7 | . 1 . . . 2 1 . . . . . . . 3 . . . Core 8 | . . . . 1 2 . . 1 . . . . . 4 . . . Reactor 5 | . . . . . . . . . . . . . . . 1 1 3 Propulsion 22 | . 4 . . 3 4 1 . . 1 . . . . . 4 4 1 Treads 5 | . . . . . . . . . . . . . . . . 4 1 Leg 13 | . 4 . . 3 2 . . . . . . . . . 4 . . Wheel 4 | . . . . . 2 1 . . 1 . . . . . . . . Hover . | . . . . . . . . . . . . . . . . . . Flight . | . . . . . . . . . . . . . . . . . . Utility 50 | . 2 1 . . 10 1 4 4 . 1 6 . 3 6 4 . 8 Device 30 | . 1 . . . 5 1 3 4 . 1 6 . . 4 1 . 4 Storage 3 | . 1 1 . . 1 . . . . . . . . . . . . Processor 9 | . . . . . 2 . 1 . . . . . 2 . . . 4 Hackware . | . . . . . . . . . . . . . . . . . . Protection 8 | . . . . . 2 . . . . . . . 1 2 3 . . Artifact . | . . . . . . . . . . . . . . . . . . Weapon 48 | . 3 . . 3 2 2 1 1 3 2 7 . . 10 3 2 9 Energy Gun 12 | . 3 . . 1 1 2 . 1 2 . 1 . . . 1 . . Energy Cannon 7 | . . . . 1 . . . . 1 1 1 . . . . . 3 Ballistic Gun 10 | . . . . 1 . . . . . . . . . 4 2 2 1 Ballistic Cannon 14 | . . . . . 1 . 1 . . . 4 . . 4 . . 4 Launcher 2 | . . . . . . . . . . 1 . . . 1 . . . Special Weapon . | . . . . . . . . . . . . . . . . . . Impact Weapon 1 | . . . . . . . . . . . 1 . . . . . . Slashing Weapon 1 | . . . . . . . . . . . . . . . . . 1 Piercing Weapon 1 | . . . . . . . . . . . . . . 1 . . . Special Melee Weapon . | . . . . . . . . . . . . . . . . . . Unidentified Prototypes 6 | . . . . . . 1 . 1 . . 1 . . . 3 . . Corrupted Parts 1 | . . . . . . . . . . . . . . . 1 . . System Corruption 3 | . . . . . . . . . . . . . . . 3 . . Parts Lost 37 | . 1 2 . 5 8 . . . 3 1 . . . 3 . . 14 Power 10 | . . . . 1 4 . . . . 1 . . . 1 . . 3 Propulsion 9 | . 1 1 . 1 2 . . . 1 . . . . . . . 3 Utility 11 | . . . . 1 1 . . . 1 . . . . 1 . . 7 Weapon 7 | . . 1 . 2 1 . . . 1 . . . . 1 . . 1 Highest Loss Streak 8 | . 1 2 . 3 4 . . . 3 1 . . . 2 . . 8 Average Slot Usage (%) 82 | . 96 88 71 77 82 65 76 80 79 82 79 73 71 83 89 99 81 Engine 5 | . 14 14 14 4 7 7 15 9 6 4 . . . 2 . . . Core 4 | . . . . 8 8 . . 2 6 6 6 6 5 6 5 3 . Reactor 1 | . . . . . . . . . . . . . . . 4 7 8 Treads 1 | . . . . . . . . . . . . . . . . 13 17 Leg 7 | . 26 22 14 22 10 . . . . . . . . . 10 8 . Wheel 6 | . . . . . 3 15 15 13 12 13 13 13 11 11 3 . . Device 19 | . 11 14 14 . 16 22 24 26 23 23 27 33 29 28 17 17 15 Storage 8 | . 14 14 14 14 9 7 7 6 6 6 6 6 5 5 5 5 3 Processor 3 | . . . . . 6 7 5 6 6 6 4 . 4 5 5 5 8 Protection 3 | . . . . . 8 . . . . . . . 2 5 15 17 9 Energy Gun 7 | . 28 22 14 5 1 3 . 6 8 13 4 . . . 2 5 1 Energy Cannon 1 | . . . . 13 3 . . . 2 4 2 . . . . . . Ballistic Gun 2 | . . . . 8 1 . . . . . . . . 5 11 11 6 Ballistic Cannon 3 | . . . . . 5 . 7 6 3 . 4 13 11 8 2 . 2 Naked Turns . | . . . . . . . . . . . . . . . . . . Heaviest Build 164 | 10 22 32 29 33 111 102 110 116 115 120 133 120 122 143 154 164 164 Greatest Support 112 | 20 20 20 10 20 28 56 56 68 68 68 68 56 56 56 78 112 112 Greatest Overweight (x) 10 | . 2 2 2 10 3 1 1 2 2 1 2 2 2 2 5 5 5 Average Overweight (x) 1 | . . 1 2 1 2 1 1 1 1 1 1 2 2 2 3 1 1 Largest Inventory Capacity 25 | 8 10 15 15 15 25 25 25 25 25 25 25 25 25 25 25 25 25 Average Capacity 20 | 8 8 12 15 15 19 25 25 25 25 25 25 25 25 25 25 25 20 Most Carried 25 | 5 10 10 15 15 25 24 25 25 25 21 25 25 25 25 25 25 25 Average Carried 20 | 5 7 10 11 14 18 23 24 24 23 20 24 25 25 24 24 24 19 Final Capacity 25 | 8 10 15 15 15 25 25 25 25 25 25 25 25 25 25 25 25 5 Final Carried 25 | 4 10 10 15 15 23 24 25 25 21 20 25 25 25 25 25 25 1 Class Distribution -------------------- 33% | Mutant 24% | Scavenger-Mutant 18% | Gunner 10% | Scavenger-Tank 5% | Scavenger-Gunner 5% | Commander-Gunner Dominant Class ---------------- Scavenger-Mutant | -10/Materials Scavenger-Mutant | -10/Mines Mutant | -10/Exiles Scavenger-Mutant | -9/Mines Scavenger-Mutant | -8/Materials Mutant | -7/Factory Mutant | -7/DSF Gunner | -6/Factory Gunner | -6/Lower Caves Gunner | -6/Lower Caves Mutant | -6/Zion Gunner | -5/Proximity Caves Gunner | -5/Factory Commander-Gunner | -5/Extension Scavenger-Tank | -5/Cetus Scavenger-Tank | -5/Archives Scavenger-Gunner | -5/Hub_04(d) Resources | -11 -10 -10 -10 -9 -8 -7 -7 -6 -6 -6 -6 -5 -5 -5 -5 -5 -5 ----------- Run | Scr Mat Min Exi Min Mat Fac DSF Fac Low Low Zio Pro Fac Ext Cet Arc Hub Matter Collected 3696 | 200 113 30 41 105 346 . 259 244 426 58 73 . 105 689 454 147 406 Remotely . | . . . . . . . . . . . . . . . . . . Salvage Created 4831 | . 300 81 . 425 432 . 116 221 170 131 . . 202 1321 336 280 816 Parts 221 | . 21 9 . 21 30 . 4 12 . 4 . . 4 47 13 14 42 Haulers Intercepted 3 | . . . . . . . . 1 . . . . 1 1 . . . Recyclers Shooed 3 | . 1 . . 1 . . . . . . . . 1 . . . . Parts Field Recycled . | . . . . . . . . . . . . . . . . . . Retrieved Matter . | . . . . . . . . . . . . . . . . . . Parts Self-Destructed 9 | . . . . . . . . . 5 4 . . . . . . . Prevented . | . . . . . . . . . . . . . . . . . . Kills | -11 -10 -10 -10 -9 -8 -7 -7 -6 -6 -6 -6 -5 -5 -5 -5 -5 -5 ------- Run | Scr Mat Min Exi Min Mat Fac DSF Fac Low Low Zio Pro Fac Ext Cet Arc Hub Combat Hostiles Destroyed 87 | . 8 6 . 11 9 . 5 2 4 4 . . . 16 5 3 14 Guns 38 | . 7 6 . 6 1 . . . 1 3 . . . 4 4 3 3 Cannons 38 | . . . . 5 8 . 5 2 2 . . . . 9 1 . 6 AOE 9 | . . . . . . . . . . 1 . . . 3 . . 5 Classes Destroyed 18 | . 3 . . 1 2 . 3 3 3 1 . . . 1 . . 1 Worker 2 | . . . . . . . . 2 . . . . . . . . . Builder 6 | . . . . . 1 . . . . . . . . 3 . . 2 Hauler 3 | . . . . . . . . 1 . . . . 1 1 . . . Recycler 7 | . . . . 2 . . . . . . . . 1 3 . . 1 Watcher 3 | . 1 . . . 1 . . . . . . . . . . . 1 Swarmer 19 | . 3 6 . 6 . . . . . . . . . 3 1 . . Grunt 29 | . 5 . . 5 7 . . . . 3 . . . 4 1 . 4 Brawler 1 | . . . . . . . . . 1 . . . . . . . . Duelist 5 | . . . . . . . . . 1 . . . . 2 . . 2 Protector 1 | . . . . . . . . . . . . . . . . . 1 Sentry 13 | . . . . . 2 . . 1 1 . . . . 5 . 3 1 Demolisher 1 | . . . . . . . . . . . . . . 1 . . . Specialist 3 | . . . . . . . 3 . . . . . . . . . . Hunter 4 | . . . . . . . 1 . . . . . . 1 . . 2 Programmer 5 | . . . . . . . . 1 . . . . . . 1 . 3 Heavy 2 | . . . . . . . 1 . . . . . . . . . 1 Behemoth 1 | . . . . . . . . . 1 . . . . . . . . Cetus Guard 2 | . . . . . . . . . . . . . . . 2 . . Thief 1 | . . . . . . . . . . 1 . . . . . . . Thug 1 | . . . . . . . . . . . . . . 1 . . . Butcher 2 | . . . . . . . . . . . . . . 1 1 . . Best Kill Streak 11 | . 3 3 . 6 7 . 2 2 3 3 . . 2 7 2 3 11 Combat Bots Only 6 | . 3 3 . 3 5 . 2 1 3 3 . . . 6 2 3 6 Max Kills in Single Turn 4 | . 1 1 . 2 1 . 1 1 1 2 . . 1 3 1 1 4 Gunslinging . | . . . . . . . . . . . . . . . . . . Exploded 2 | . . . . . . . . . . 1 . . . 1 . . 2 Melee . | . . . . . . . . . . . . . . . . . . Uniques/NPCs Destroyed . | . . . . . . . . . . . . . . . . . . Combat | -11 -10 -10 -10 -9 -8 -7 -7 -6 -6 -6 -6 -5 -5 -5 -5 -5 -5 -------- Run | Scr Mat Min Exi Min Mat Fac DSF Fac Low Low Zio Pro Fac Ext Cet Arc Hub Damage Taken 9432 | . 409 189 . 393 1465 . 347 67 520 210 . . . 1653 176 50 3953 Core 1555 | . 65 43 . 92 235 . 22 6 73 16 . . . 61 11 . 931 Absorbed by Shields 430 | . . . . . . . 101 . . 16 . . . 174 139 . . Core Remaining (%) 72 | 100 . . . 20 57 . 96 . . . . 88 . . . . . Volleys Fired 279 | . 34 14 . 29 50 . 24 8 16 8 . . 3 38 21 7 27 Largest 3 | . 2 2 . 2 2 . 1 2 3 3 . . 2 3 3 3 3 Hottest 250 | . 105 105 . 125 100 . 60 140 250 250 . . 113 134 148 148 157 Shots Fired 542 | . 68 26 . 55 59 . 24 16 36 21 . . 6 94 63 17 57 Gun 298 | . 68 26 . 29 9 . . 8 20 16 . . . 37 44 17 24 Cannon 238 | . . . . 26 50 . 24 8 16 2 . . 6 54 19 . 33 Launcher 6 | . . . . . . . . . . 3 . . . 3 . . . Special . | . . . . . . . . . . . . . . . . . . Kinetic 308 | . . . . 5 41 . 24 8 12 . . . 6 91 61 14 46 Thermal 228 | . 68 26 . 50 18 . . 8 24 18 . . . . 2 3 11 Explosive 6 | . . . . . . . . . . 3 . . . 3 . . . Electromagnetic . | . . . . . . . . . . . . . . . . . . Robot Hit Streak 16 | . 6 4 . 6 10 . 11 11 16 7 . . 2 8 5 9 9 Robot Miss Streak 6 | . 6 2 . 4 4 . 1 5 4 3 . . 1 3 2 2 4 Penetration Max 1 | . . . . . . . . . . . . . . 1 1 . . Secondary Targets 5 | . 2 2 . . . . . . . . . . . . . . 1 Max Gunslinging Chain 1 | . 1 1 . . . . . . . . . . . . . . 1 Shots Hit Robots 348 | . 42 16 . 35 37 . 20 11 32 20 . . 3 52 36 12 32 Core Hits 199 | . 15 6 . 16 14 . 6 8 10 16 . . 2 42 23 8 33 Critical Kills 6 | . . . . . . . . . . . . . . 3 3 . . Critical Parts Destroyed 13 | . . . . . . . . . . . . . . 1 11 . 1 Critical Strikes 35 | . 1 . . . 4 . 1 . 1 . . . . 9 15 . 4 Burn 1 | . 1 . . . . . . . . . . . . . . . . Destroy 21 | . . . . . . . . . . . . . . 4 15 . 2 Blast 13 | . . . . . 4 . 1 . 1 . . . . 5 . . 2 Melee Attacks 4 | . . . . . . . . . . . 2 . . . . . 2 Impact 2 | . . . . . . . . . . . 2 . . . . . . Slashing 2 | . . . . . . . . . . . . . . . . . 2 Piercing . | . . . . . . . . . . . . . . . . . . Sneak Attacks . | . . . . . . . . . . . . . . . . . . Combat Hostiles . | . . . . . . . . . . . . . . . . . . Follow-up Attacks . | . . . . . . . . . . . . . . . . . . Damage Inflicted 13538 | . 545 206 . 594 1301 . 1000 395 1248 561 . . 176 2453 1182 337 3540 Guns 4469 | . 545 206 . 315 66 . . 141 522 334 . . . 663 867 337 473 Cannons 6655 | . . . . 279 1235 . 1000 254 726 62 . . 176 1342 315 . 1266 Explosions 2414 | . . . . . . . . . . 165 . . . 448 . . 1801 Melee . | . . . . . . . . . . . . . . . . . . Ramming . | . . . . . . . . . . . . . . . . . . Kinetic 7581 | . . . . 27 1077 . 1000 254 658 . . . 176 2005 1182 284 918 Thermal 5344 | . 545 206 . 567 224 . . 141 590 396 . . . . . 53 2622 Explosive 613 | . . . . . . . . . . 165 . . . 448 . . . Electromagnetic . | . . . . . . . . . . . . . . . . . . Impact . | . . . . . . . . . . . . . . . . . . Slashing . | . . . . . . . . . . . . . . . . . . Piercing . | . . . . . . . . . . . . . . . . . . Highest Corruption 8 | . 4 4 4 4 . . . . . . . . . 1 4 4 8 Average Corruption 3 | . 3 4 4 4 . . . . . . . . . 1 3 4 5 Corruption Purged . | . . . . . . . . . . . . . . . . . . Effects 85 | . 17 8 18 9 . . . . . . . . . 2 14 6 11 Message Errors 15 | . 5 1 2 . . . . . . . . . . . 5 . 2 Matter Fused 28 | . 4 2 6 5 . . . . . . . . . . 4 3 4 Heat Flow Errors 13 | . 3 1 5 . . . . . . . . . . . 1 2 1 Energy Discharges 17 | . 4 2 5 2 . . . . . . . . . 2 2 . . Parts Rejected 2 | . 1 . . . . . . . . . . . . . . . 1 Data Loss (minor) 8 | . . 2 . 2 . . . . . . . . . . 2 1 1 Data Loss (major) 1 | . . . . . . . . . . . . . . . . . 1 Misfires 1 | . . . . . . . . . . . . . . . . . 1 Overload Shots . | . . . . . . . . . . . . . . . . . . Overflow Damage 458 | . . . . . 66 . . . 40 . . . 27 50 . . 275 Projectiles 256 | . . . . . 66 . . . 40 . . . 27 18 . . 105 Explosions 202 | . . . . . . . . . . . . . . 32 . . 170 Melee . | . . . . . . . . . . . . . . . . . . Knockbacks 22 | . . . . . 7 . 4 . 3 . . . 1 3 3 . 1 Impact . | . . . . . . . . . . . . . . . . . . Kinetic 21 | . . . . . 7 . 3 . 3 . . . 1 3 3 . 1 Secondary 1 | . . . . . . . 1 . . . . . . . . . . Self-Inflicted Damage 14 | . . . . . . . . . . 14 . . . . . . . Shots 1 | . . . . . . . . . . 1 . . . . . . . Rammed . | . . . . . . . . . . . . . . . . . . Targets Rammed . | . . . . . . . . . . . . . . . . . . Kicked . | . . . . . . . . . . . . . . . . . . Crushed . | . . . . . . . . . . . . . . . . . . Highest Temperature 633 | . 264 136 260 330 35 . . 60 406 345 . . 12 30 152 240 633 Average Temperature 110 | . 86 25 120 121 7 . . 16 106 150 . . 9 10 39 101 238 Received Heat Transfer 1911 | . 165 . . 141 486 . 24 12 78 69 . . . 204 28 . 704 Effects 26 | . 1 . 1 . . . . . 1 . . . . . . . 23 Shutdowns 6 | . . . . . . . . . . . . . . . . . 6 Energy Bleed 5 | . 1 . 1 . . . . . 1 . . . . . . . 2 Interference 8 | . . . . . . . . . . . . . . . . . 8 Matter Decay 2 | . . . . . . . . . . . . . . . . . 2 Short Circuit 2 | . . . . . . . . . . . . . . . . . 2 Damage (core) 3 | . . . . . . . . . . . . . . . . . 3 Siege Activations . | . . . . . . . . . . . . . . . . . . Robots Corrupted . | . . . . . . . . . . . . . . . . . . Combat Hostiles . | . . . . . . . . . . . . . . . . . . Parts Fried . | . . . . . . . . . . . . . . . . . . Impact Corruptions . | . . . . . . . . . . . . . . . . . . Robots Melted 2 | . 1 . . . . . . . 1 . . . . . . . . Combat Hostiles 2 | . 1 . . . . . . . 1 . . . . . . . . Parts Melted 19 | . . 2 . 7 . . . . 2 2 . . . 2 1 . 3 Heat Transferred 8720 | . 1343 472 . 1259 483 . . 300 1225 850 . . . . . 74 2714 Parts Sabotaged . | . . . . . . . . . . . . . . . . . . Parts Stolen 1 | . . . . . . . . . . 1 . . . . . . . Parts Stripped . | . . . . . . . . . . . . . . . . . . Power Chain Reactions . | . . . . . . . . . . . . . . . . . . Missiles Intercepted . | . . . . . . . . . . . . . . . . . . Alert | -11 -10 -10 -10 -9 -8 -7 -7 -6 -6 -6 -6 -5 -5 -5 -5 -5 -5 ------- Run | Scr Mat Min Exi Min Mat Fac DSF Fac Low Low Zio Pro Fac Ext Cet Arc Hub Peak Influence 1502 | . 155 210 . 165 252 54 163 210 . . . . 46 1375 1398 764 1502 Initial 769 | . . 60 . . 39 48 37 85 . . . . . 22 769 517 267 Average 357 | . 103 93 . 81 86 48 108 136 . . . . 17 465 1169 738 896 Maximum Alert Level 4 | . . 1 . . 1 . . 1 . . . . . 4 4 3 4 Low Security (%) 62 | 100 100 83 . 100 95 100 100 85 . . . . 100 30 . . . Level 1 7 | . . 16 . . 4 . . 14 . . . . . 20 . . 15 Level 2 6 | . . . . . . . . . . . . . . 23 . 13 21 Level 3 11 | . . . . . . . . . . . . . . 12 29 86 22 Level 4 11 | . . . . . . . . . . . . . . 12 70 . 40 Level 5 . | . . . . . . . . . . . . . . . . . . High Security . | . . . . . . . . . . . . . . . . . . Max Security . | . . . . . . . . . . . . . . . . . . Squads Dispatched 25 | . . . . . 3 . 2 1 . . . . . 4 1 . 14 Investigation 5 | . . . . . . . . . . . . . . 3 1 . 1 Extermination 2 | . . . . . . . . 1 . . . . . . . . 1 Reinforcement 11 | . . . . . 3 . 2 . . . . . . . . . 6 Assault 4 | . . . . . . . . . . . . . . 1 . . 3 Garrison 3 | . . . . . . . . . . . . . . . . . 3 Intercept . | . . . . . . . . . . . . . . . . . . Construction Impeded 1 | . . . . . . . . . . . . . . . . . 1 Haulers Reinforced . | . . . . . . . . . . . . . . . . . . Active Scanning Responses . | . . . . . . . . . . . . . . . . . . Cargo Convoy Interrupts . | . . . . . . . . . . . . . . . . . . Stealth | -11 -10 -10 -10 -9 -8 -7 -7 -6 -6 -6 -6 -5 -5 -5 -5 -5 -5 --------- Run | Scr Mat Min Exi Min Mat Fac DSF Fac Low Low Zio Pro Fac Ext Cet Arc Hub Distress Signals 8 | . 1 . . . 2 . . . . . . . . 3 2 . . Communications Jammed . | . . . . . . . . . . . . . . . . . . Distress Signals . | . . . . . . . . . . . . . . . . . . Times Spotted 205 | . 11 6 . 13 38 . 5 3 6 4 . . . 45 20 6 48 Peak Tracking Total 18 | . 3 3 . 4 18 . 2 2 4 3 . . . 8 5 1 16 Tactical Retreats 8 | . . . . 1 4 . . . 1 . . . . . . . 2 Traps | -11 -10 -10 -10 -9 -8 -7 -7 -6 -6 -6 -6 -5 -5 -5 -5 -5 -5 ------- Run | Scr Mat Min Exi Min Mat Fac DSF Fac Low Low Zio Pro Fac Ext Cet Arc Hub Traps Triggered 9 | . 3 . . . 2 . 2 . . . . . . 2 . . . Indirectly . | . . . . . . . . . . . . . . . . . . Trap Hack Attempts . | . . . . . . . . . . . . . . . . . . Triggered . | . . . . . . . . . . . . . . . . . . Disarmed . | . . . . . . . . . . . . . . . . . . Reprogrammed . | . . . . . . . . . . . . . . . . . . Reused . | . . . . . . . . . . . . . . . . . . Traps Extracted . | . . . . . . . . . . . . . . . . . . Installed . | . . . . . . . . . . . . . . . . . . Triggered 1 | . . . . . . . . . . . . . . 1 . . . Machines | -11 -10 -10 -10 -9 -8 -7 -7 -6 -6 -6 -6 -5 -5 -5 -5 -5 -5 ---------- Run | Scr Mat Min Exi Min Mat Fac DSF Fac Low Low Zio Pro Fac Ext Cet Arc Hub Machines Disabled 25 | . 3 1 . 1 1 . . . . . . . . 7 3 3 6 Max in Single Turn 2 | . 1 1 . 1 1 . . . . . . . . 1 1 1 2 Garrison Access 1 | . . . . . . . . . . . . . . . . . 1 Machines Sabotaged . | . . . . . . . . . . . . . . . . . . Garrisons Compromised . | . . . . . . . . . . . . . . . . . . Overloaded Fab Kills . | . . . . . . . . . . . . . . . . . . Hacking | -11 -10 -10 -10 -9 -8 -7 -7 -6 -6 -6 -6 -5 -5 -5 -5 -5 -5 --------- Run | Scr Mat Min Exi Min Mat Fac DSF Fac Low Low Zio Pro Fac Ext Cet Arc Hub Machines Accessed 33 | . 6 . 1 . 3 3 . 1 . . . . 2 12 1 . 4 Terminals 30 | . 6 . . . 3 2 . 1 . . . . 2 12 1 . 3 Fabricators . | . . . . . . . . . . . . . . . . . . Repair Stations 1 | . . . . . . 1 . . . . . . . . . . . Recycling Units . | . . . . . . . . . . . . . . . . . . Scanalyzers . | . . . . . . . . . . . . . . . . . . Garrison Access 1 | . . . . . . . . . . . . . . . . . 1 Total Hacks 82 | . 23 . 1 . 8 5 . 3 . . . . 9 22 2 . 9 Successful 32 | . 9 . 1 . 3 2 . 1 . . . . 4 9 . . 3 Failed 50 | . 14 . . . 5 3 . 2 . . . . 5 13 2 . 6 Catastrophic 10 | . 1 . . . 1 1 . 1 . . . . . 3 1 . 2 Database Lockouts . | . . . . . . . . . . . . . . . . . . Manual 42 | . 13 . 1 . 6 2 . 1 . . . . 10 5 2 2 . Terminals 78 | . 23 . . . 8 4 . 3 . . . . 9 22 2 . 7 Fabricators . | . . . . . . . . . . . . . . . . . . Repair Stations 1 | . . . . . . 1 . . . . . . . . . . . Recycling Units . | . . . . . . . . . . . . . . . . . . Scanalyzers . | . . . . . . . . . . . . . . . . . . Garrison Access 2 | . . . . . . . . . . . . . . . . . 2 Terminal Hacks 20 | . 4 . 1 . 2 1 . . . . . . 1 8 . . 3 Record 1 | . . . . . . . . . . . . . . . . . 1 Prototype ID Bank 1 | . 1 . . . . . . . . . . . . . . . . Open Door 8 | . . . . . . . . . . . . . . 8 . . . Open DSF 1 | . . . . . . 1 . . . . . . . . . . . Branch Access Points 4 | . 1 . . . 1 . . . . . . . 1 . . . 1 Emergency Access Points 3 | . 1 . . . 1 . . . . . . . . . . . 1 Reprogram Traps 1 | . 1 . . . . . . . . . . . . . . . . EX-Prototype ID Bank 1 | . . . 1 . . . . . . . . . . . . . . Fabricator Hacks . | . . . . . . . . . . . . . . . . . . Repair Station Hacks 1 | . . . . . . 1 . . . . . . . . . . . Refit 1 | . . . . . . 1 . . . . . . . . . . . Recycling Unit Hacks . | . . . . . . . . . . . . . . . . . . Scanalyzer . | . . . . . . . . . . . . . . . . . . Garrison Access Hacks . | . . . . . . . . . . . . . . . . . . Unauthorized Hacks 11 | . 5 . . . 1 . . 1 . . . . 3 1 . . . Terminals 11 | . 5 . . . 1 . . 1 . . . . 3 1 . . . Track 1 | . 1 . . . . . . . . . . . . . . . . Assimilate 2 | . . . . . . . . . . . . . 1 1 . . . Botnet 5 | . 2 . . . 1 . . 1 . . . . 1 . . . . Disrupt 1 | . 1 . . . . . . . . . . . . . . . . Operators 2 | . 1 . . . . . . . . . . . 1 . . . . Fabricators . | . . . . . . . . . . . . . . . . . . Repair Stations . | . . . . . . . . . . . . . . . . . . Recycling Units . | . . . . . . . . . . . . . . . . . . Scanalyzers . | . . . . . . . . . . . . . . . . . . Garrison Access . | . . . . . . . . . . . . . . . . . . Data Cores Recovered . | . . . . . . . . . . . . . . . . . . Used . | . . . . . . . . . . . . . . . . . . Hacking Detections 28 | . 6 . . . 3 2 . 1 . . . . 2 9 1 . 4 Full Trace Events 5 | . . . . . . . . . . . . . . 3 1 . 1 Feedback Events 2 | . . . . . . . . . . . . . . 1 . . 1 Corruption 2 | . . . . . . . . . . . . . . 1 . . 1 Feedback Blocked . | . . . . . . . . . . . . . . . . . . Robot Schematics Acquired 3 | . . . . . . . . . . . 3 . . . . . . Robots Built . | . . . . . . . . . . . . . . . . . . Authchips . | . . . . . . . . . . . . . . . . . . Time . | . . . . . . . . . . . . . . . . . . Total Robot Build Rating . | . . . . . . . . . . . . . . . . . . Part Schematics Acquired 16 | . . . . . . . . . . . 16 . . . . . . Parts Built . | . . . . . . . . . . . . . . . . . . Authchips . | . . . . . . . . . . . . . . . . . . Time . | . . . . . . . . . . . . . . . . . . Total Part Build Rating . | . . . . . . . . . . . . . . . . . . Parts Repaired . | . . . . . . . . . . . . . . . . . . Time . | . . . . . . . . . . . . . . . . . . Parts Recycled . | . . . . . . . . . . . . . . . . . . Recycled Matter . | . . . . . . . . . . . . . . . . . . Retrieved Matter . | . . . . . . . . . . . . . . . . . . Retrieved Components . | . . . . . . . . . . . . . . . . . . Parts Scanalyzed . | . . . . . . . . . . . . . . . . . . Part Schematics Acquired . | . . . . . . . . . . . . . . . . . . Parts Damaged . | . . . . . . . . . . . . . . . . . . Bothacking | -11 -10 -10 -10 -9 -8 -7 -7 -6 -6 -6 -6 -5 -5 -5 -5 -5 -5 ------------ Run | Scr Mat Min Exi Min Mat Fac DSF Fac Low Low Zio Pro Fac Ext Cet Arc Hub Used RIF Installer . | . . . . . . . . . . . . . . . . . . Robots Hacked . | . . . . . . . . . . . . . . . . . . Non-combat . | . . . . . . . . . . . . . . . . . . Combat . | . . . . . . . . . . . . . . . . . . Robot Hacks Applied . | . . . . . . . . . . . . . . . . . . Relay Couplers Released 2 | . . . . . . . . . . . . . . . . . 2 Machine Destruction 2 | . . . . . . . . . . . . . . . . . 2 Fabnet Peak Effective % . | . . . . . . . . . . . . . . . . . . Robots Rewired 11 | . . . . . . . . . . . . . . 11 . . . Allies Hacked . | . . . . . . . . . . . . . . . . . . Hacks Repelled . | . . . . . . . . . . . . . . . . . . Allies | -11 -10 -10 -10 -9 -8 -7 -7 -6 -6 -6 -6 -5 -5 -5 -5 -5 -5 -------- Run | Scr Mat Min Exi Min Mat Fac DSF Fac Low Low Zio Pro Fac Ext Cet Arc Hub Total Allies 31 | . . . . . . . . . . . 2 . . 24 5 . . Largest Group 16 | . . . . . . . . . . . 2 2 2 16 8 6 4 Highest-Rated Group 675 | . . . . . . . . . . . 42 42 42 597 675 552 380 Highest-Rated Ally 159 | . . . . . . . . . . . 28 28 28 159 159 152 95 Total Orders 7 | . . . . . . . . . . . . . . 4 . . 3 STAY 3 | . . . . . . . . . . . . . . 1 . . 2 FOLLOW 2 | . . . . . . . . . . . . . . 1 . . 1 GUARD 2 | . . . . . . . . . . . . . . 2 . . . Ally Attacks 339 | . . . . . . . . . . . . . . 192 74 9 64 Total Damage 9290 | . . . . . . . . . . . . . . 3965 2502 338 2485 Kills 61 | . . . . . . . . . . . . . . 32 15 1 13 Allies Corrupted . | . . . . . . . . . . . . . . . . . . Allies Melted . | . . . . . . . . . . . . . . . . . . Intel | -11 -10 -10 -10 -9 -8 -7 -7 -6 -6 -6 -6 -5 -5 -5 -5 -5 -5 ------- Run | Scr Mat Min Exi Min Mat Fac DSF Fac Low Low Zio Pro Fac Ext Cet Arc Hub Robot Analysis Total . | . . . . . . . . . . . . . . . . . . Derelict Logs Recovered 8 | . . . . 3 . . . . 2 1 . 2 . . . . . Drone Launches . | . . . . . . . . . . . . . . . . . . Drone Recoveries . | . . . . . . . . . . . . . . . . . . Decoded 0b10 Intel 9 | . . . . . . . . . . . . . . . . . 9 Traps 1 | . . . . . . . . . . . . . . . . . 1 Emergency Access 1 | . . . . . . . . . . . . . . . . . 1 Items 3 | . . . . . . . . . . . . . . . . . 3 Reinforcements 3 | . . . . . . . . . . . . . . . . . 3 Guards 1 | . . . . . . . . . . . . . . . . . 1 Exploration | -11 -10 -10 -10 -9 -8 -7 -7 -6 -6 -6 -6 -5 -5 -5 -5 -5 -5 ------------- Run | Scr Mat Min Exi Min Mat Fac DSF Fac Low Low Zio Pro Fac Ext Cet Arc Hub Turns Passed 10150 | 1 770 500 713 659 1043 220 271 290 586 351 1489 398 191 1129 596 385 558 Spaces Moved 5583 | 1 436 218 273 205 450 183 143 199 456 260 1071 307 137 611 257 149 227 Core 104 | . . . . 2 . . . . . . . . . . . . 102 Treads 221 | . . . . . . . . . . . . . . . . 96 125 Legs 1541 | 1 436 218 273 203 241 . . . . . . . . . 116 53 . Wheels 3717 | . . . . . 209 183 143 199 456 260 1071 307 137 611 141 . . Hover . | . . . . . . . . . . . . . . . . . . Flight . | . . . . . . . . . . . . . . . . . . Fastest Speed 100 | 120 120 190 260 190 115 115 115 115 115 115 115 130 130 130 130 190 100 Average Speed 149 | 120 146 211 260 200 178 115 115 115 116 115 115 130 130 130 195 233 184 Slowest Speed 570 | 120 260 260 260 550 260 115 115 130 130 115 130 130 130 130 260 560 570 Overloaded Moves . | . . . . . . . . . . . . . . . . . . Propulsion Burnouts . | . . . . . . . . . . . . . . . . . . Robots Hopped . | . . . . . . . . . . . . . . . . . . Cave-ins Triggered . | . . . . . . . . . . . . . . . . . . Exploration Rate (%) 49 | 2 77 32 62 52 39 7 82 6 64 55 83 64 4 81 56 83 34 Regions Visited 17 Branch Regions 11 Pre-discovered Areas 3 | . . . . 2 . . . . . . 1 . . . . . . Known Exits Taken 4 | . 1 . . . 1 1 . . . . . . 1 . . . . Unknown Exits Taken 12 | 1 . 1 1 1 . . . 1 1 1 1 1 . 1 1 1 . Scrap Searched 7 | . . 1 . . . . . . 2 . 4 . . . . . . Spaces Dug 7 | . . . . . 5 . . . . . . . . . . . 2 Terrain Destroyed 189 | . . . . 15 20 . 6 4 4 23 . . 3 28 5 . 81 Melee 2 | . . . . . . . . . . . . . . . . . 2 Projectile 78 | . . . . . 20 . 6 4 4 . . . 3 12 5 . 24 AOE 109 | . . . . 15 . . . . . 23 . . . 16 . . 55 Terrain Rammed . | . . . . . . . . . . . . . . . . . . Walls Destroyed . | . . . . . . . . . . . . . . . . . . Machines Disabled . | . . . . . . . . . . . . . . . . . . Actions | -11 -10 -10 -10 -9 -8 -7 -7 -6 -6 -6 -6 -5 -5 -5 -5 -5 -5 --------- Run | Scr Mat Min Exi Min Mat Fac DSF Fac Low Low Zio Pro Fac Ext Cet Arc Hub Total 6926 | 2 502 233 278 397 617 191 232 245 476 294 1329 306 142 871 316 178 317 Wait 522 | . . . . 156 51 . 22 21 . 24 207 . . 12 8 5 16 Move 5566 | . 435 217 272 204 449 182 142 198 455 259 1070 306 136 610 256 148 227 Hop . | . . . . . . . . . . . . . . . . . . Pick Up 99 | . 11 . 5 1 22 4 13 5 1 . 18 . . 9 6 2 2 Fast Attach 55 | . 3 . . 4 8 3 3 2 . 1 4 . 2 9 9 5 2 Attach 38 | . . . . 2 6 2 1 2 4 1 3 . . 2 1 . 14 Detach 15 | . . . . . 3 . 3 . . . 1 . . . . . 8 Swap 47 | . 7 1 . 1 6 . 1 2 . 1 6 . 1 12 2 2 5 Drop 132 | 2 12 1 1 . 22 . 15 7 . . 18 . . 19 13 9 13 Fire 279 | . 34 14 . 29 50 . 24 8 16 8 . . 3 38 21 7 27 Melee 4 | . . . . . . . . . . . 2 . . . . . 2 Ram . | . . . . . . . . . . . . . . . . . . Kick . | . . . . . . . . . . . . . . . . . . Crush . | . . . . . . . . . . . . . . . . . . Escape Stasis 24 | . . . . . . . 8 . . . . . . 16 . . . Rewire 145 | . . . . . . . . . . . . . . 144 . . 1 Trap . | . . . . . . . . . . . . . . . . . . Miscellaneous . | . . . . . . . . . . . . . . . . . . Route ------- -11/Scrapyard -10/Materials (discovered 3 exits: [*Mat] / *Min x2) -10/Mines (discovered 2 exits: [*Mat] / *Exi) -10/Exiles -9/Mines (discovered 2 exits: *Mat x2) -8/Materials -7/Factory -7/DSF -6/Factory -6/Lower Caves -6/Lower Caves -6/Zion -5/Proximity Caves -5/Factory (discovered 5 exits: Fac / Upp x2 / *Ext x2) -5/Extension (discovered 2 exits: *Fac / *Cet) -5/Cetus (discovered 2 exits: *Fac / *Arc) -5/Archives (discovered 3 exits: *Fac / *Hub x2) -5/Hub_04(d) History --------- Turn | Location | Event 2 | -11/Scrapyard | Discovered new exit (range 0) 2 | -11/Scrapyard | Entered Materials 12 | -10/Materials | Identified exit to Mines 466 | -10/Materials | Build established: Scavenger-Mutant 485 | -10/Materials | Discovered new exit (range 5) 772 | -10/Materials | Entered Mines 833 | -10/Mines | Deemed a non-threat by the Exiles lab entrance 833 | -10/Mines | Discovered new exit (range 5) 1066 | -10/Mines | Discovered new exit (range 9) 1272 | -10/Mines | Entered Exiles 1343 | -10/Exiles | Met 8R-AWN 1384 | -10/Exiles | Met EX-HEX 1397 | -10/Exiles | Build established: Mutant 1457 | -10/Exiles | Met EX-BIN 1486 | -10/Exiles | Aligned with FarCom system 1488 | -10/Exiles | Given EX-Vault access code 1553 | -10/Exiles | Opened EX-Vault 1577 | -10/Exiles | Found YOLO Cannon 1627 | -10/Exiles | Warned to stay clear of 0b10 Research branches 1705 | -10/Exiles | Met EX-DEC 1964 | -10/Exiles | Discovered new exit (range 10) 1985 | -10/Exiles | Left Exiles lab with YOLO Cannon 1985 | -10/Exiles | Entered Mines 1996 | -9/Mines | Core integrity fell below 50% 2028 | -9/Mines | Lost 3 parts (1n1u1w) 2186 | -9/Mines | Discovered new exit (range 7) 2274 | -9/Mines | Learned location of Storage (-7) 2512 | -9/Mines | Build established: Scavenger-Mutant 2591 | -9/Mines | Learned location of Zion (-6) 2600 | -9/Mines | Learned Materials terminal intel 2615 | -9/Mines | Discovered new exit (range 13) 2644 | -9/Mines | Entered Materials 2644 | -8/Materials | Evolved 4 slots: Power x1, Utility x3 2645 | -8/Materials | Loaded intel: 12 terminal locations 3671 | -8/Materials | Discovered new exit (range 9) 3686 | -8/Materials | Identified exit to Factory 3687 | -8/Materials | Entered Factory 3687 | -7/Factory | Evolved 2 slots: Propulsion x2 3714 | -7/Factory | Lost 4 parts (2p1n1w) 3876 | -7/Factory | Identified exit to DSF 3907 | -7/Factory | Entered DSF 3929 | -7/DSF | Additional patrols routed to DSF 3988 | -7/DSF | Build established: Mutant 4127 | -7/DSF | Discovered new exit (range 11) 4178 | -7/DSF | Entered Factory 4178 | -6/Factory | Evolved 2 slots: Utility x1, Weapon x1 4376 | -6/Factory | Discovered new exit (range 15) 4468 | -6/Factory | Entered Lower Caves 4471 | -6/Lower Caves | Build established: Gunner 4484 | -6/Lower Caves | Attracted the attention of an 0b10 checkpoint 4725 | -6/Lower Caves | Learned 12 Factory zone layouts 4815 | -6/Lower Caves | Spotted B-75 Beast 4847 | -6/Lower Caves | Destroyed B-75 Beast 4865 | -6/Lower Caves | Lost 3 parts (1n1u1w) 4869 | -6/Lower Caves | Learned Factory emergency access door positions 4993 | -6/Lower Caves | Discovered new exit (range 4) 5054 | -6/Lower Caves | Entered another Lower Caves area 5096 | -6/Lower Caves | Hvy. Plasma Cannon stolen by Master Thief 5138 | -6/Lower Caves | Learned Factory trap positions 5373 | -6/Lower Caves | Discovered new exit (range 8) 5405 | -6/Lower Caves | Entered Zion 5433 | -6/Zion | Received a hallucinogenic algorithm 5539 | -6/Zion | Visited the Megawrench Repair Shop 5610 | -6/Zion | Found CR-A16's Pointy Stick 5640 | -6/Zion | Build established: Mutant 5644 | -6/Zion | Discovered new exit (range 15) 6134 | -6/Zion | Found Prototype Device 6134 | -6/Zion | Identified Bomb Factory No. 2 6263 | -6/Zion | Gained Derelict followers 6616 | -6/Zion | Rebuked by Imprinter 6803 | -6/Zion | Megawrench repaired 9 parts 6894 | -6/Zion | Entered Proximity Caves 6894 | -5/Proximity Caves | Accompanied by 2 allies 6922 | -5/Proximity Caves | Learned Factory terminal intel 7093 | -5/Proximity Caves | Learned Factory stockpile data 7156 | -5/Proximity Caves | Build established: Gunner 7260 | -5/Proximity Caves | Discovered new exit (range 8) 7292 | -5/Proximity Caves | Entered Factory 7292 | -5/Factory | Accompanied by 2 allies 7292 | -5/Factory | Evolved 2 slots: Utility x2 7293 | -5/Factory | Identified exit to Upper Caves 7293 | -5/Factory | Identified exit to Factory 7294 | -5/Factory | Loaded intel: 83 trap records 7297 | -5/Factory | Loaded intel: 28 terminal locations 7453 | -5/Factory | Identified exit to Extension 7483 | -5/Factory | Entered Extension 7483 | -5/Extension | Accompanied by 2 allies 7540 | -5/Extension | Rescued a captive Derelict 7541 | -5/Extension | Rescued a captive Derelict 7659 | -5/Extension | Rescued a captive Derelict 7662 | -5/Extension | Rescued a captive Derelict 7741 | -5/Extension | P-70 Sage assimilated allied AG-494(i) 7909 | -5/Extension | Build established: Commander-Gunner 7921 | -5/Extension | Rescued a captive Derelict 7921 | -5/Extension | Rescued a captive Derelict 7942 | -5/Extension | Spotted B-75 Beast 7952 | -5/Extension | Spotted B-75 Beast 7978 | -5/Extension | Allies destroyed B-75 Beast 7987 | -5/Extension | Allies destroyed B-75 Beast 8085 | -5/Extension | Rescued A7 8159 | -5/Extension | Rescued a captive Derelict 8173 | -5/Extension | Rescued a captive Derelict 8223 | -5/Extension | Rescued a captive Derelict 8225 | -5/Extension | Rescued a captive Derelict 8282 | -5/Extension | Rescued a captive Derelict 8283 | -5/Extension | Rescued a captive Derelict 8383 | -5/Extension | First assault squad dispatched 8451 | -5/Extension | Discovered exit to Factory (range 10) 8452 | -5/Extension | Discovered new exit (range 6) 8547 | -5/Extension | Build established: Scavenger-Gunner 8572 | -5/Extension | Disrupted transfer network 8612 | -5/Extension | Entered Cetus 8612 | -5/Cetus | Accompanied by 7 allies (A7) 8617 | -5/Cetus | Acquired a Cetus Manufacturing Module code from A7 8630 | -5/Cetus | Spotted Cetus Guard 8630 | -5/Cetus | Spotted Cetus Guard 8631 | -5/Cetus | Destroyed Cetus Guard 8632 | -5/Cetus | Spotted Cetus Guard 8637 | -5/Cetus | Allies destroyed Cetus Guard 8637 | -5/Cetus | Spotted Cetus Guard 8645 | -5/Cetus | Allies destroyed Cetus Guard 8658 | -5/Cetus | Allies destroyed Cetus Guard 8744 | -5/Cetus | Started Cetus Manufacturing Module 8769 | -5/Cetus | Manufactured an Enhanced Grunt 8791 | -5/Cetus | Discovered new exit (range 16) 8794 | -5/Cetus | Manufactured an Enhanced Grunt 8819 | -5/Cetus | Manufactured an Enhanced Grunt 8844 | -5/Cetus | Manufactured an Enhanced Grunt 8869 | -5/Cetus | Manufactured an Enhanced Grunt 8882 | -5/Cetus | Spotted Cetus Guard 8882 | -5/Cetus | Spotted Cetus Guard 8885 | -5/Cetus | Spotted Cetus Guard 8885 | -5/Cetus | Spotted Cetus Guard 8894 | -5/Cetus | Allies destroyed Cetus Guard 8900 | -5/Cetus | Destroyed Cetus Guard 8901 | -5/Cetus | Allies destroyed Cetus Guard 8903 | -5/Cetus | Discovered exit to Factory (range 16) 8906 | -5/Cetus | Allies destroyed Cetus Guard 8926 | -5/Cetus | Met Revision 17 8980 | -5/Cetus | Build established: Scavenger-Tank 9208 | -5/Cetus | Entered Archives 9208 | -5/Archives | Accompanied by 6 allies (A7) 9308 | -5/Archives | Unable to access archive contents 9316 | -5/Archives | Discovered exit to Factory (range 16) 9380 | -5/Archives | Discovered new exit (range 16) 9411 | -5/Archives | Discovered new exit (range 16) 9593 | -5/Archives | Entered Hub_04(d) 9593 | -5/Hub_04(d) | Accompanied by 4 allies 9893 | -5/Hub_04(d) | First assault squad dispatched 9921 | -5/Hub_04(d) | Garrison activated, responded to threat 9956 | -5/Hub_04(d) | Core integrity fell below 50% 10028 | -5/Hub_04(d) | Lost 8 parts (2p1n4u1w) 10048 | -5/Hub_04(d) | Core integrity fell below 20% 10077 | -5/Hub_04(d) | Lost 5 parts (1p2n2u) 10151 | -5/Hub_04(d) | Destroyed by X-72 Disruptor with Improved Arc Projector Last Messages --------------- 10083_ K-01 Serf collects debris. 10085_ >> DECODED: Security location. 10090_ System corrupted: Weapon Cycler rejected. 10090_ K-01 Serf collects debris. 10095_ >> DECODED: Lrn. Missile Launcher location. 10103_ Connecting with Terminal... 10109_ >> DECODED: Reinforcement location. 10119_ >> DECODED: Alarm Trap location. 10124_ K-01 Serf cleans the Control Node. 10128_ System corrupted: Matter fused (-8). 10128_ K-01 Serf cleans the Control Node. 10129_ >> DECODED: Reinforcement location. 10133_ K-01 Serf cleans the Control Node. 10146_ >> DECODED: Emergency access location. 10146_ Slug penetrates Door. 10150_ System corrupted: Heat flow error (+203). 10150_ Penetrated by Slug. 10151_ >> DECODED: Microactuators location. 10151_ ALERT: Hostiles spotted, dispatching reinforcements to Terminal H004. Map ----- +----------------------------------------------------+ | ?????????????????????????????????????????????????? | | ?????????????????????????????????????????????????? | | ?????????????????????????????????????????????????? | | ?????????????????????????????????????????????????? | | ?????????????????????????????????????????????????? | | ?????????????????????????????????????????????????? | | ???+?????????????????????????????????????????????? | | ?????????????????????????????????????????????????? | | ?????????????????????????????????????????????????? | | ?????????????????????????????????????????????????? | | ???????????????????????? ???????????????????????? | | ???????????????????????? ???????????????????????? | | ???????????????????????# ???????????????????????? | | ??????????????????????? ???????????????????????? | | ??????????????????????? ???????????????????????? | | ??????????????????????? Y???????????????????????? | | ??????????????????????? ???????????????????????? | | ???????????????????????# #??????????????????????? | | ???????????hY??????????# #??????????????????????? | | ???????????????????????# w??????????????????????? | | ???????????????????????# #??????????????????????? | | ???????????????????????# #??????????????????????? | | ???????????????Y???????# #??????????????????????? | | ???????????????????????# #??????????????????????? | | ???????????????????????# +??????????????????????? | | ???????????????????????# @#??????????????????????? | | ???????????????????????# #??????????????????????? | | ????????????????????##?# #??????????????????????? | | ????????????????????#T"# #??????????????????????? | | ?????????????### #### "# #########??????????????? | | ??????????+ g g k #?????????????? | | ?????????????????## ######## #?????????????? | | ??????????????????##+###x####????? #?????????????? | | ??????????????????# g #????? #?????????????? | | ??????????????????#! ] gl #????? #?????????????? | | ??????????????????# xg#????? #?????????????? | | ??????????????????# g#???##+###???????????? | | ??????????????????# " " " "g#???# #???????????? | | ??????????????????# " " " " #####! " #???????????? | | ??????????????????# " " " " H b " #???????????? | | ??????????????????# ##### w" #???????????? | | ??????????????????############### #?????????? | | ???????????????????????? ? ## " #????????? | | ???????????????????????"" """" ## " #??????? ? | | ???????????????????????"" """" ## " #???????!?# | | ??????????????????????""" """" ## #??????!? # | | ?????????????????????"""" """" ####/##???????? # | | ??????????????????# + +???????? | | ??????????????????# """" """" #### #+???????? | | ??????????????????# """" """" #??# #??????## | +----------------------------------------------------+ Best States ------------- Heat Dissipation 67 Energy Generation 43 Energy Capacity 590 Matter Stores 300 Matter Capacity 300 Sight Range 16 Terrain Scan Density 110 Additional Mass Support 12 Armor Coverage 675 Power Shielding 33 Utility Shielding 66 Weapon Cycling 30 Phase Shifting 5 Evasion (%) 55 Core Analysis 8 Armor Integrity Analysis 30 Recoil Reduction 4 Matter Filtering 30 Kinecelleration 40 Item Schematics ----------------- Reaction Control System | -6/Zion | Archive Angular Momentum Engine | -6/Zion | Archive Neutrino Core | -6/Zion | Archive Imp. Heavy Armor Plating | -6/Zion | Archive Arm. Medium Treads | -6/Zion | Archive Mak. Hover Unit | -6/Zion | Archive Adv. Cooling System | -6/Zion | Archive Lrn. Missile Launcher | -6/Zion | Archive Point Defense System | -6/Zion | Archive Proton Cannon | -6/Zion | Archive Adv. Actuator Array | -6/Zion | Archive Imp. Kinecellerator | -6/Zion | Archive Lgt. Fission Core | -6/Zion | Archive Mak. Cloaking Device | -6/Zion | Archive Adv. Drone Bay | -6/Zion | Archive Imp. KE Penetrator | -6/Zion | Archive Robot Schematics ------------------ M-14 Sweeper | -6/Zion | Archive A-15 Conveyor | -6/Zion | Archive G-50 Soldier | -6/Zion | Archive Fabricated ------------ Nothing Alien Tech Used ----------------- None Achievements -------------- None Challenges ------------ None Game ------ Seed SeismicControlAmplifier Manual? 0 Play Time 01:42:48 Cumulative 335.9 hours Start 2022.01.03 @ 12:34:58 End 2022.02.12 @ 22:43:42 Sessions 5 Manual Loads 0 Difficulty Rogue Special Mode Winter2021/Sauler Game No. 472 Rogue 471 Adventurer 0 Explorer 1 Win Type - Total 2 Types 2/0/0/0/0/0/0/0/0 Lore% 68 Gallery% 81 Achievement% 61 Wizard Run 0 Options --------- ASCII 1 Keyboard 1 Movement Vi Keybinds 0 Fullscreen 2 Font 12/Smallcaps Map View 76x56 Tactical HUD 1 Map Filters NONE Filters LOW_CONTRAST(13,24,33) Steam 0 RUN: cd414ac5-07d9-4fb4-ad12-bddda19a99f9